bitfinex/quotes_SOLUSD_20220118
["timestamp","ask_amount","ask_price","bid_price","bid_amount"]
[1642498234879,0.03791311,137.7,137.69,24.76220106]
[1642498235077,0.03791311,137.7,137.69,30.76220106]
[1642498235678,0.03791311,137.7,137.69,24.76220106]
[1642498235877,0.03791311,137.7,137.69,25.01964734]
[1642498236279,0.03791311,137.7,137.69,31.26964734]
[1642498236479,0.07962902,137.71,137.69,28.17364734]
[1642498236679,0.07962902,137.71,137.7,13.7906]
[1642498236878,0.07962902,137.71,137.7,24.5306]
[1642498237082,0.07962902,137.71,137.7,24.2806]
[1642498237878,0.07962902,137.71,137.7,13.394]
[1642498238905,0.07962902,137.71,137.7,24.2825]
[1642498240604,0.07962902,137.71,137.7,24.5325]
[1642498241203,0.07962902,137.71,137.7,24.53994628]
[1642498241803,0.07962902,137.71,137.7,21.63594628]
[1642498242304,0.07962902,137.71,137.7,21.88594628]
[1642498242506,0.07962902,137.71,137.7,21.63594628]
[1642498242704,0.07962902,137.71,137.7,27.63594628]
[1642498244308,0.07962902,137.71,137.7,100.25594628]
[1642498244507,0.07962902,137.71,137.7,100.00594628]
[1642498244707,0.07962902,137.71,137.7,27.63594628]
[1642498244906,0.07962902,137.71,137.7,30.53994628]
[1642498246507,0.07962902,137.71,137.7,30.79994628]
[1642498246707,0.07962902,137.71,137.7,31.04994628]
[1642498246909,1e-08,137.71,137.7,103.41994628]
[1642498247709,1e-08,137.71,137.7,235.97433051]
[1642498248307,2.904,137.84,137.7,235.97433051]
[1642498248507,2.904,137.84,137.72,72.37]
[1642498248710,2.904,137.84,137.75,10.8835]
[1642498248909,2.904,137.84,137.78,0.25744628]
[1642498249110,0.25,137.83,137.78,0.25744628]
[1642498249311,2.902,137.82,137.78,0.25744628]
[1642498249513,0.25,137.83,137.79,10.49]
[1642498249709,0.25,137.81,137.79,10.49]
[1642498249910,0.25,137.83,137.79,10.49]
[1642498250911,0.043,137.85,137.79,21.3706]
[1642498251312,0.043,137.85,137.79,10.49]
[1642498252815,2.945,137.85,137.79,10.49]
[1642498253214,0.25,137.84,137.79,10.49]
[1642498254116,2.902,137.83,137.76,2.902]
[1642498254315,8.902,137.83,137.82,0.00744628]
[1642498254516,14.96639994,137.83,137.82,0.00744628]
[1642498254715,68.96639994,137.83,137.82,0.00744628]
[1642498255116,0.01255372,137.79,137.75,10.49]
[1642498256115,2.903,137.78,137.71,10.49]
[1642498256315,2.903,137.78,137.69,10.49]
[1642498256316,8.903,137.78,137.69,10.49]
[1642498256516,2.903,137.78,137.72,2.903]
[1642498256716,1.80160644,137.79,137.73,10.49]
[1642498256915,0.01255372,137.79,137.74,2.903]
[1642498257115,0.01255372,137.79,137.75,10.49]
[1642498257316,0.01255372,137.79,137.76,2.903]
[1642498257516,0.01255372,137.79,137.77,10.49]
[1642498258516,0.01255372,137.79,137.77,21.3721]
[1642498258922,0.01255372,137.79,137.77,29.6021]
[1642498259121,0.01255372,137.79,137.77,35.6021]
[1642498259321,0.01255372,137.79,137.77,29.6021]
[1642498259519,0.01255372,137.79,137.77,29.3421]
[1642498259719,0.01255372,137.79,137.77,29.6021]
[1642498259920,0.01255372,137.79,137.78,13.7837]
[1642498260120,0.01255372,137.79,137.78,24.2737]
[1642498262121,0.01255372,137.79,137.78,24.7837]
[1642498262321,0.01255372,137.79,137.78,30.7837]
[1642498263527,0.01255372,137.79,137.78,60.7837]
[1642498265322,0.043,137.85,137.79,33.0]
[1642498265521,0.043,137.85,137.8,24.2682]
[1642498265725,0.043,137.85,137.8,21.6162]
[1642498267327,0.043,137.85,137.8,21.3662]
[1642498267525,0.043,137.85,137.8,10.49]
[1642498268726,0.043,137.85,137.77,2.902]
[1642498269024,2.902,137.84,137.77,2.902]
[1642498269425,2.902,137.84,137.78,10.49]
[1642498269827,2.902,137.84,137.78,17.94306533]
[1642498270028,2.902,137.84,137.78,149.29306533]
[1642498270227,2.902,137.84,137.79,1.45306533]
[1642498270429,0.043,137.85,137.8,10.49]
[1642498270629,0.043,137.85,137.81,10.49]
[1642498270832,2.902,137.84,137.8,10.49]
[1642498271230,3.162,137.84,137.8,10.49]
[1642498271432,36.23723376,137.83,137.8,10.49]
[1642498271630,6.06439994,137.82,137.8,10.49]
[1642498272632,36.23723376,137.83,137.8,10.49]
[1642498272835,6.06439994,137.82,137.8,10.49]
[1642498273435,36.23723376,137.83,137.8,10.49]
[1642498273835,2.902,137.82,137.72,2.902]
[1642498274034,2.902,137.82,137.73,10.49]
[1642498274236,8.902,137.82,137.71,10.49]
[1642498275037,19.7886,137.82,137.71,10.49]
[1642498275437,0.30536997,137.79,137.67,10.49]
[1642498275636,2.904,137.78,137.65,10.49]
[1642498275835,0.25,137.77,137.65,10.49]
[1642498276039,10.8932,137.75,137.65,10.49]
[1642498276238,2.904,137.74,137.66,3.81860804]
[1642498276437,2.904,137.77,137.67,13.394]
[1642498276639,4.69305272,137.81,137.67,150.484]
[1642498276840,4.69305272,137.81,137.68,0.25]
[1642498277039,1.78905272,137.78,137.69,13.393]
[1642498277241,1.78905272,137.78,137.7,0.42671326]
[1642498277441,1.78905272,137.78,137.71,10.49]
[1642498277643,2.903,137.77,137.71,10.49]
[1642498278042,2.904,137.8,137.71,10.49]
[1642498278243,10.8905,137.78,137.71,10.49]
[1642498278449,45.27086654,137.77,137.71,10.49]
[1642498278647,45.52086654,137.77,137.68,10.49]
[1642498278845,51.52086654,137.77,137.68,10.49]
[1642498279445,10.8921,137.76,137.68,10.49]
[1642498279668,2.904,137.75,137.68,10.49]
[1642498279970,9.154,137.75,137.68,10.49]
[1642498280571,10.8944,137.73,137.68,10.49]
[1642498280766,0.25,137.72,137.68,10.49]
[1642498281973,3.154,137.73,137.68,10.49]
[1642498282269,17.1438,137.73,137.68,10.49]
[1642498282470,0.25,137.73,137.68,10.49]
[1642498282671,0.25,137.73,137.68,16.616]
[1642498282870,0.25,137.78,137.68,16.616]
[1642498283069,2.904,137.77,137.68,16.616]
[1642498283270,11.1418,137.76,137.68,10.49]
[1642498283671,17.1418,137.76,137.68,10.49]
[1642498284269,38.02555238,137.75,137.68,10.49]
[1642498284471,10.8952,137.73,137.68,10.49]
[1642498284671,47.20424345,137.72,137.68,10.49]
[1642498284870,0.25,137.71,137.68,10.49]
[1642498285073,6.06439994,137.7,137.68,10.49]
[1642498285271,32.25,137.69,137.68,10.49]
[1642498285471,35.154,137.69,137.66,2.904]
[1642498285671,46.051,137.69,137.66,2.904]
[1642498285873,43.407,137.69,137.66,2.904]
[1642498286071,83.54332858,137.69,137.64,10.49]
[1642498286274,72.64632858,137.69,137.64,10.49]
[1642498287679,78.64632858,137.69,137.64,10.49]
[1642498288177,72.64632858,137.69,137.64,10.49]
[1642498288379,0.51,137.69,137.64,10.49]
[1642498288578,0.26,137.69,137.64,10.49]
[1642498288780,2.904,137.74,137.64,10.49]
[1642498288978,2.904,137.77,137.65,2.904]
[1642498289178,2.904,137.77,137.66,10.49]
[1642498289380,41.64368183,137.75,137.67,2.904]
[1642498289578,44.54768183,137.75,137.67,10.49]
[1642498289778,41.64368183,137.75,137.67,10.49]
[1642498289979,2.904,137.74,137.67,10.49]
[1642498290179,47.64368183,137.75,137.67,10.49]
[1642498290380,58.53618183,137.75,137.67,10.49]
[1642498290779,0.25,137.74,137.65,2.904]
[1642498290980,3.154,137.74,137.63,10.49]
[1642498291381,9.154,137.74,137.63,10.49]
[1642498292283,9.154,137.74,137.64,2.904]
[1642498292480,10.8969,137.72,137.63,10.49]
[1642498292681,51.84920712,137.71,137.63,10.49]
[1642498292981,58.09920712,137.71,137.63,10.49]
[1642498293383,58.09920712,137.71,137.65,7.1952719]
[1642498293582,10.8964,137.7,137.65,7.1952719]
[1642498293882,35.68816113,137.68,137.65,7.1952719]
[1642498294080,6.06439994,137.67,137.65,7.1952719]
[1642498294279,12.31439994,137.67,137.65,7.1952719]
[1642498294880,44.0,137.66,137.62,2.904]
[1642498295180,46.904,137.66,137.56,10.49]
[1642498295382,0.25,137.65,137.56,10.49]
[1642498295581,67.906,137.64,137.53,10.49]
[1642498295783,0.25,137.63,137.5,5.52312979]
[1642498295981,10.9079,137.59,137.5,5.52312979]
[1642498296182,2.908,137.58,137.5,5.52312979]
[1642498296384,6.25,137.58,137.5,5.52312979]
[1642498296582,45.07717478,137.57,137.5,5.52312979]
[1642498296782,0.25,137.56,137.5,8.43112979]
[1642498296987,0.26,137.59,137.51,10.49]
[1642498297185,2.908,137.61,137.52,2.908]
[1642498297382,2.907,137.63,137.53,10.49]
[1642498297583,24.9446,137.66,137.54,2.907]
[1642498297783,67.44563694,137.66,137.55,15.83190418]
[1642498297984,13.8069,137.65,137.55,15.83190418]
[1642498298184,15.59595272,137.65,137.55,10.49]
[1642498298483,21.59595272,137.65,137.55,10.49]
[1642498298686,0.25,137.64,137.55,10.49]
[1642498298887,2.907,137.63,137.55,10.49]
[1642498299084,42.40696653,137.63,137.54,19.99271587]
[1642498299285,0.25,137.62,137.52,10.49]
[1642498299486,2.907,137.61,137.52,10.49]
[1642498299884,0.25,137.6,137.52,10.49]
[1642498300085,2.907,137.62,137.52,10.49]
[1642498300286,6.0,137.61,137.53,23.57780033]
[1642498300488,10.9006,137.65,137.54,21.391]
[1642498300692,1.78905272,137.66,137.55,2.907]
[1642498300890,6.20542,137.68,137.56,10.49]
[1642498301090,6.20542,137.68,137.57,2.906]
[1642498301294,6.20542,137.68,137.58,10.49]
[1642498301494,12.20542,137.68,137.59,17.96699287]
[1642498301689,12.20542,137.68,137.6,10.49]
[1642498301890,9.37142,137.68,137.6,10.49]
[1642498302390,3.166,137.68,137.6,10.49]
[1642498302590,2.906,137.68,137.6,10.49]
[1642498302792,0.25,137.67,137.6,10.49]
[1642498302991,10.8977,137.69,137.6,10.49]
[1642498303190,2.906,137.71,137.6,21.3864]
[1642498303391,2.904,137.72,137.61,0.25]
[1642498303591,6.20542,137.73,137.62,10.49]
[1642498303791,6.20542,137.73,137.62,16.75]
[1642498303994,49.50332999,137.72,137.63,20.47891505]
[1642498304192,49.50332999,137.72,137.64,10.49]
[1642498304492,49.50332999,137.72,137.64,13.394]
[1642498305493,49.50332999,137.72,137.65,10.8923]
[1642498305694,13.7963,137.75,137.66,13.394]
[1642498305916,8.904,137.75,137.66,18.19]
[1642498306115,0.25,137.74,137.67,2.904]
[1642498306314,2.904,137.77,137.67,2.904]
[1642498306315,2.904,137.77,137.68,10.49]
[1642498306521,41.65105304,137.77,137.69,13.7932]
[1642498306717,41.65105304,137.77,137.7,10.49]
[1642498306920,2.904,137.76,137.7,10.49]
[1642498307122,13.7954,137.76,137.7,10.49]
[1642498307320,14.0554,137.76,137.7,10.49]
[1642498307825,0.25,137.75,137.7,10.49]
[1642498308218,11.1421,137.75,137.7,10.49]
[1642498308423,2.904,137.74,137.7,10.49]
[1642498308618,43.83441452,137.74,137.7,10.49]
[1642498308818,0.25,137.73,137.7,10.49]
[1642498309422,2.904,137.76,137.7,10.49]
[1642498309621,6.20542,137.78,137.7,10.49]
[1642498309826,2.904,137.77,137.7,10.49]
[1642498310223,19.7947,137.77,137.7,10.49]
[1642498310622,21.58375272,137.77,137.67,10.49]
[1642498310823,0.25,137.76,137.65,10.49]
[1642498311021,2.904,137.75,137.63,10.49]
[1642498311222,13.394,137.75,137.59,10.49]
[1642498311423,10.8961,137.73,137.59,10.49]
[1642498311624,2.904,137.72,137.59,10.49]
[1642498311822,0.25,137.71,137.59,10.49]
[1642498312024,2.904,137.7,137.59,10.49]
[1642498312424,0.25,137.69,137.59,16.49]
[1642498312625,0.25,137.69,137.6,2.906]
[1642498312824,2.906,137.68,137.6,6.0]
[1642498313024,42.95244989,137.67,137.6,6.0]
[1642498313229,43.20244989,137.67,137.59,10.49]
[1642498313433,0.25,137.67,137.6,2.906]
[1642498313629,4.1381805,137.7,137.61,10.49]
[1642498313828,0.25,137.69,137.62,2.904]
[1642498314027,4.1381805,137.7,137.63,10.49]
[1642498314631,4.1381805,137.7,137.64,2.904]
[1642498314829,4.1381805,137.7,137.63,10.49]
[1642498315033,36.50846764,137.72,137.64,2.904]
[1642498315231,35.08227579,137.69,137.63,10.49]
[1642498315730,35.08227579,137.69,137.6,13.394]
[1642498315731,0.25,137.68,137.6,13.394]
[1642498316033,3.156,137.68,137.6,10.49]
[1642498316430,0.25,137.68,137.6,10.49]
[1642498316631,35.08227579,137.69,137.6,16.49]
[1642498317332,52.23937579,137.69,137.6,10.49]
[1642498317933,52.23937579,137.69,137.6,16.49]
[1642498318136,0.25,137.68,137.6,10.49]
[1642498318339,2.906,137.67,137.56,2.906]
[1642498318533,10.9014,137.66,137.56,2.906]
[1642498318732,2.906,137.65,137.56,2.906]
[1642498318937,49.28467071,137.64,137.56,2.906]
[1642498319234,49.53467071,137.64,137.56,2.906]
[1642498319638,49.53467071,137.64,137.54,11.626]
[1642498319838,55.53467071,137.64,137.54,17.626]
[1642498320039,2.906,137.65,137.54,28.5273]
[1642498320241,4.1381805,137.66,137.54,36.3213]
[1642498320439,4.1381805,137.67,137.54,36.3213]
[1642498320837,4.1381805,137.67,137.54,36.5813]
[1642498321037,4.1381805,137.67,137.54,28.7873]
[1642498321237,15.0366805,137.67,137.54,28.7873]
[1642498321441,10.8985,137.67,137.55,3.60715514]
[1642498321639,75.516,137.66,137.55,3.60715514]
[1642498321943,40.82167304,137.65,137.55,9.60715514]
[1642498322138,10.9021,137.63,137.55,3.60715514]
[1642498322337,3.157,137.62,137.55,3.60715514]
[1642498322738,9.157,137.62,137.51,26.259]
[1642498322944,9.157,137.62,137.5,109.60660439]
[1642498323138,45.06601038,137.61,137.5,109.60660439]
[1642498323339,10.906,137.58,137.5,85.30010439]
[1642498323539,36.29559868,137.57,137.5,12.29050439]
[1642498323738,36.54559868,137.57,137.5,12.29050439]
[1642498323940,42.54559868,137.57,137.5,12.29050439]
[1642498324139,42.54559868,137.57,137.5,8.72]
[1642498325941,42.80559868,137.57,137.5,8.72]
[1642498326440,53.71199868,137.57,137.5,8.72]
[1642498326841,53.71199868,137.57,137.5,14.72]
[1642498327641,42.80559868,137.57,137.5,14.72]
[1642498327840,42.80559868,137.57,137.5,17.628]
[1642498328042,42.80559868,137.57,137.5,14.72]
[1642498328340,42.80559868,137.57,137.5,8.72]
[1642498328540,2.908,137.56,137.48,3.57050439]
[1642498328740,10.9095,137.54,137.48,3.57050439]
[1642498328941,45.61509337,137.53,137.48,3.57050439]
[1642498329143,42.95709337,137.53,137.48,3.57050439]
[1642498329340,2.908,137.52,137.48,3.57050439]
[1642498329744,0.25,137.51,137.45,3.78262339]
[1642498330342,8.908,137.59,137.45,3.78262339]
[1642498330544,8.908,137.59,137.46,11.628]
[1642498330746,0.25,137.58,137.46,11.628]
[1642498330944,0.25,137.58,137.47,0.25]
[1642498331145,47.11130305,137.58,137.48,6.06754418]
[1642498331345,53.11130305,137.58,137.48,11.888]
[1642498331544,13.8144,137.57,137.48,8.72]
[1642498331746,13.8144,137.57,137.5,1.89830147]
[1642498331945,0.25,137.56,137.5,1.89830147]
[1642498333548,0.25,137.56,137.49,1.89830147]
[1642498334749,0.25,137.57,137.49,1.89830147]
[1642498334950,2.908,137.56,137.49,1.89830147]
[1642498335247,2.908,137.56,137.5,1.89830147]
[1642498335248,0.25,137.55,137.5,1.89830147]
[1642498335848,45.2975877,137.55,137.5,1.89830147]
[1642498336048,45.2975877,137.55,137.46,14.72]
[1642498336250,51.0475877,137.55,137.47,6.0]
[1642498336449,51.0475877,137.55,137.46,19.00383713]
[1642498336649,0.26,137.56,137.47,3.158]
[1642498336848,6.0,137.58,137.48,8.72]
[1642498337048,2.908,137.59,137.48,8.72]
[1642498337248,8.908,137.59,137.48,8.72]
[1642498337550,10.9071,137.57,137.48,8.72]
[1642498337748,2.908,137.56,137.48,8.72]
[1642498337948,0.25,137.56,137.48,8.72]
[1642498338147,2.908,137.55,137.48,8.72]
[1642498338352,0.25,137.54,137.48,8.72]
[1642498338549,54.67720232,137.54,137.48,8.72]
[1642498338848,60.67720232,137.54,137.48,8.72]
[1642498339048,43.76840232,137.54,137.48,8.72]
[1642498339248,0.25,137.54,137.48,8.72]
[1642498339877,0.25,137.56,137.48,8.72]
[1642498340179,2.908,137.55,137.48,8.72]
[1642498340378,0.25,137.54,137.48,8.72]
[1642498340979,44.07115511,137.56,137.48,8.72]
[1642498341178,10.9081,137.55,137.48,8.72]
[1642498341477,16.9081,137.55,137.48,8.72]
[1642498341879,16.9081,137.55,137.47,2.908]
[1642498342077,2.908,137.54,137.45,24.251]
[1642498342276,2.908,137.54,137.44,23.5406]
[1642498342277,10.9113,137.52,137.43,80.57520147]
[1642498342478,9.158,137.54,137.44,26.54311532]
[1642498342681,6.25,137.54,137.45,2.908]
[1642498342878,6.0,137.54,137.46,8.72]
[1642498343081,44.07115511,137.56,137.47,2.908]
[1642498343279,54.97835511,137.56,137.48,8.72]
[1642498343480,2.908,137.55,137.47,6.0]
[1642498343679,8.908,137.55,137.43,24.58020147]
[1642498344281,0.25,137.54,137.48,1.89830147]
[1642498344482,2.908,137.53,137.48,1.89830147]
[1642498344681,40.43832954,137.52,137.48,1.89830147]
[1642498344882,13.8202,137.51,137.48,1.89830147]
[1642498345084,10.9122,137.51,137.48,1.89830147]
[1642498345283,6.31439994,137.5,137.46,1.89830147]
[1642498345482,39.50054017,137.49,137.46,1.89830147]
[1642498345881,0.25,137.48,137.46,1.89830147]
[1642498346481,6.06439994,137.47,137.46,1.89830147]
[1642498346881,6.31439994,137.47,137.46,1.89830147]
[1642498348083,0.25,137.47,137.46,1.89830147]
[1642498348484,0.25,137.47,137.45,1.89830147]
[1642498348682,0.25,137.47,137.43,4.09865666]
[1642498348683,30.0,137.47,137.43,4.09865666]
[1642498348884,0.25,137.46,137.43,4.09865666]
[1642498349086,6.06439994,137.45,137.43,4.09865666]
[1642498349284,25.25,137.44,137.43,4.09865666]
[1642498349685,71.86756055,137.44,137.42,3.57050439]
[1642498349888,72.12756055,137.44,137.41,4.14392789]
[1642498350088,47.12756055,137.44,137.41,4.14392789]
[1642498350491,16.98239994,137.43,137.41,4.14392789]
[1642498350888,0.25,137.42,137.4,4.14392789]
[1642498351188,0.25,137.42,137.38,4.14392789]
[1642498351789,10.9184,137.42,137.38,4.14392789]
[1642498352288,0.25,137.41,137.38,4.14392789]
[1642498352488,6.06439994,137.4,137.38,4.14392789]
[1642498352688,6.06439994,137.4,137.37,4.14392789]
[1642498352888,43.58840497,137.39,137.37,4.14392789]
[1642498353290,2.911,137.43,137.37,4.14392789]
[1642498353491,6.0,137.44,137.37,4.14392789]
[1642498353990,16.9167,137.44,137.35,7.05492789]
[1642498354790,17.1767,137.44,137.35,7.05492789]
[1642498355190,48.10965273,137.43,137.35,7.05492789]
[1642498355391,10.9188,137.42,137.35,7.05492789]
[1642498355791,0.25,137.41,137.37,4.14392789]
[1642498356091,3.161,137.41,137.37,4.14392789]
[1642498356293,43.10178183,137.4,137.37,4.14392789]
[1642498356493,3.03219997,137.39,137.37,4.14392789]
[1642498356693,3.03219997,137.38,137.35,4.14392789]
[1642498356891,0.25,137.37,137.35,4.14392789]
[1642498357693,10.9173,137.44,137.35,4.14392789]
[1642498357894,16.9173,137.44,137.35,7.05492789]
[1642498358699,37.77391555,137.43,137.35,7.05492789]
[1642498358897,0.25,137.42,137.36,4.14392789]
[1642498359497,43.77391555,137.43,137.36,4.14392789]
[1642498359697,2.911,137.47,137.36,4.14392789]
[1642498359899,6.0,137.47,137.37,11.88]
[1642498360097,6.0,137.49,137.37,19.171]
[1642498360298,8.91,137.51,137.37,19.431]
[1642498360498,8.91,137.51,137.37,44.96725667]
[1642498360698,36.73779639,137.5,137.37,143.7024089]
[1642498360898,3.16,137.49,137.37,143.7024089]
[1642498361101,14.0729,137.49,137.39,10.9128]
[1642498361298,20.0729,137.49,137.4,8.72]
[1642498363199,20.3329,137.49,137.4,8.72]
[1642498363602,17.4229,137.49,137.4,8.72]
[1642498364605,2.91,137.48,137.4,8.72]
[1642498364800,0.25,137.47,137.4,8.72]
[1642498365404,47.3934652,137.47,137.4,8.72]
[1642498365831,136.9179652,137.47,137.39,2.91]
[1642498366033,2.91,137.46,137.36,4.14392789]
[1642498366235,11.63,137.46,137.36,4.14392789]
[1642498366432,0.25,137.45,137.36,4.14392789]
[1642498366633,2.911,137.44,137.36,4.14392789]
[1642498366833,47.70663419,137.43,137.36,4.14392789]
[1642498367033,2.911,137.42,137.36,4.14392789]
[1642498367234,56.61763419,137.43,137.36,4.14392789]
[1642498367434,0.25,137.41,137.33,4.14392789]
[1642498368536,48.30383681,137.4,137.33,4.14392789]
[1642498368738,2.911,137.39,137.33,4.14392789]
[1642498368938,3.161,137.39,137.33,4.14392789]
[1642498369139,9.161,137.39,137.33,4.14392789]
[1642498369337,9.161,137.39,137.3,4.14392789]
[1642498369538,10.9219,137.38,137.3,10.14392789]
[1642498369737,10.9219,137.38,137.3,4.14392789]
[1642498369738,45.3380359,137.37,137.3,4.14392789]
[1642498369939,54.5000359,137.37,137.3,4.14392789]
[1642498370139,51.3380359,137.37,137.3,4.14392789]
[1642498370338,0.25,137.36,137.3,4.14392789]
[1642498370539,3.162,137.36,137.3,4.14392789]
[1642498370738,10.9242,137.35,137.3,4.14392789]
[1642498371140,49.6049083,137.34,137.3,4.14392789]
[1642498371341,55.6049083,137.34,137.26,4.14392789]
[1642498371940,55.8649083,137.34,137.26,4.14392789]
[1642498372438,49.8649083,137.34,137.26,17.81589305]
[1642498372639,49.8649083,137.34,137.26,90.42589305]
[1642498372943,0.51,137.34,137.27,2.912]
[1642498373138,0.25,137.34,137.27,3.162]
[1642498373337,39.3208,137.4,137.27,2.912]
[1642498373338,0.25,137.39,137.27,2.912]
[1642498373538,10.9223,137.37,137.26,15.77592789]
[1642498373738,2.912,137.36,137.26,12.86392789]
[1642498373944,0.25,137.36,137.26,12.86392789]
[1642498374144,2.912,137.35,137.26,12.86392789]
[1642498374440,48.7484445,137.34,137.26,8.72]
[1642498374642,2.912,137.33,137.26,14.72]
[1642498374842,0.25,137.32,137.24,7.05592789]
[1642498375145,2.912,137.31,137.24,7.05592789]
[1642498375340,0.25,137.3,137.24,7.05592789]
[1642498375542,46.98959203,137.3,137.24,4.14392789]
[1642498375942,46.98959203,137.3,137.22,11.632]
[1642498376342,46.98959203,137.3,137.22,8.72]
[1642498376543,46.98959203,137.3,137.23,32.66193353]
[1642498376742,46.98959203,137.3,137.24,2.914]
[1642498376943,46.98959203,137.3,137.24,22.5587]
[1642498377242,0.25,137.3,137.24,22.5587]
[1642498377443,0.26,137.31,137.24,22.5587]
[1642498377642,0.26,137.31,137.24,19.6447]
[1642498378043,10.9263,137.32,137.24,8.72]
[1642498378243,3.162,137.31,137.24,8.72]
[1642498378444,40.81475205,137.3,137.24,8.72]
[1642498378643,40.81475205,137.3,137.22,4.14392789]
[1642498378842,0.25,137.29,137.21,30.0711]
[1642498379044,14.093,137.29,137.21,30.0711]
[1642498379444,20.093,137.29,137.21,30.0711]
[1642498380045,20.093,137.29,137.21,24.0711]
[1642498381046,20.093,137.29,137.19,26.6952]
[1642498381249,20.353,137.29,137.19,2.914]
[1642498382250,20.353,137.29,137.18,7.05792789]
[1642498382450,20.353,137.29,137.18,19.844]
[1642498383648,20.353,137.29,137.18,8.914]
[1642498383849,72.61,137.28,137.18,8.914]
[1642498384049,10.933,137.25,137.17,82.70652789]
[1642498384252,0.25,137.24,137.17,4.14392789]
[1642498384652,44.55409187,137.24,137.17,4.14392789]
[1642498384852,50.55409187,137.24,137.17,4.14392789]
[1642498385052,61.48719187,137.24,137.15,25.57652789]
[1642498385654,61.48719187,137.24,137.15,14.64392789]
[1642498386055,2.915,137.23,137.15,14.64392789]
[1642498386255,11.1846,137.22,137.15,14.64392789]
[1642498386654,45.431571,137.21,137.15,14.64392789]
[1642498386856,0.25,137.2,137.15,14.64392789]
[1642498387053,51.431571,137.21,137.15,14.64392789]
[1642498387054,45.431571,137.21,137.15,14.64392789]
[1642498387259,45.431571,137.21,137.15,10.5]
[1642498387857,45.691571,137.21,137.15,10.5]
[1642498388557,51.691571,137.21,137.15,10.5]
[1642498388755,0.25,137.2,137.15,10.5]
[1642498389155,51.431571,137.21,137.15,10.5]
[1642498389358,2.915,137.25,137.15,14.85786623]
[1642498389556,10.9315,137.26,137.17,10.931]
[1642498389857,16.9315,137.26,137.17,10.431]
[1642498390459,39.58645853,137.25,137.16,23.7054]
[1642498390655,53.68385853,137.25,137.16,34.2054]
[1642498390859,59.68385853,137.25,137.16,34.2054]
[1642498391258,59.94385853,137.25,137.16,34.2054]
[1642498392186,59.94385853,137.25,137.16,10.5]
[1642498392385,59.94385853,137.25,137.13,14.64392789]
[1642498392584,59.94385853,137.25,137.13,10.14392789]
[1642498393684,132.55385853,137.25,137.13,10.14392789]
[1642498393888,132.55385853,137.25,137.13,6.0]
[1642498394386,132.55385853,137.25,137.12,8.915]
[1642498394586,132.55385853,137.25,137.12,2.915]
[1642498395190,132.55385853,137.25,137.13,4.14392789]
[1642498396490,75.5,137.24,137.12,2.915]
[1642498396691,2.915,137.23,137.12,2.915]
[1642498396889,10.9401,137.2,137.08,16.02312979]
[1642498397090,2.916,137.19,137.08,16.02312979]
[1642498397294,108.41652842,137.18,137.08,16.02312979]
[1642498397492,2.916,137.17,137.08,16.02312979]
[1642498397694,3.166,137.17,137.08,16.02312979]
[1642498397897,8.916,137.17,137.08,16.02312979]
[1642498398095,35.80652842,137.18,137.09,10.21788576]
[1642498398393,41.80652842,137.18,137.1,10.5]
[1642498399294,41.80652842,137.18,137.11,10.9357]
[1642498399496,41.80652842,137.18,137.1,10.5]